bitfinex/quotes_SOLUSD_20220128
["timestamp","ask_amount","ask_price","bid_price","bid_amount"]
[1643358935949,1.496114,89.743,89.63,16.08]
[1643358936150,1.496114,89.745,89.631,23.0295]
[1643358936346,23.4953,89.749,89.631,23.2795]
[1643358936347,1.496114,89.748,89.631,23.2795]
[1643358936548,32.05876855,89.728,89.632,38.48339203]
[1643358937047,32.05876855,89.728,89.633,110.95]
[1643358937247,24.991414,89.749,89.633,110.95]
[1643358937451,23.4953,89.749,89.634,24.7939]
[1643358937650,2.95669142,89.748,89.635,110.7]
[1643358937849,2.95669142,89.748,89.635,110.95]
[1643358938250,2.95669142,89.748,89.632,38.48339203]
[1643358938251,0.30409495,89.738,89.632,38.48339203]
[1643358938452,8.74730447,89.727,89.632,38.48339203]
[1643358938654,17.576114,89.72,89.632,38.48339203]
[1643358938851,29.9366902,89.71,89.632,38.48339203]
[1643358939052,110.7,89.699,89.632,38.48339203]
[1643358939555,16.746,89.69,89.632,38.48339203]
[1643358939757,8.74730447,89.689,89.632,38.48339203]
[1643358939956,11.70399589,89.689,89.632,38.48339203]
[1643358940362,2.95669142,89.688,89.633,0.25]
[1643358940556,6.0,89.717,89.633,0.25]
[1643358941563,6.0,89.717,89.633,110.95]
[1643358941760,110.7,89.728,89.633,110.95]
[1643358941965,110.7,89.728,89.633,133.9263]
[1643358942164,23.3304,89.737,89.643,6.0]
[1643358942364,23.3304,89.737,89.644,110.95]
[1643358942564,23.3304,89.737,89.654,6.0]
[1643358942767,37.94410647,89.738,89.655,42.2626133]
[1643358942967,16.7357,89.75,89.655,42.2626133]
[1643358943366,110.7,89.748,89.655,42.2626133]
[1643358944168,27.61483235,89.747,89.655,42.2626133]
[1643358944367,51.05203235,89.747,89.655,42.2626133]
[1643358945969,6.0,89.737,89.655,42.2626133]
[1643358946371,6.0,89.737,89.655,42.0126133]
[1643358946568,2.95669142,89.736,89.655,42.0126133]
[1643358947069,16.7365,89.74,89.655,42.0126133]
[1643358947271,51.05203235,89.747,89.655,42.0126133]
[1643358947470,51.05203235,89.747,89.656,110.7]
[1643358947769,51.05203235,89.747,89.656,110.95]
[1643358948568,23.4372,89.747,89.656,110.95]
[1643358948973,1.496114,89.758,89.656,110.95]
[1643358949171,1.496114,89.758,89.667,110.7]
[1643358949371,1.496114,89.768,89.668,22.9206]
[1643358949570,1.496114,89.775,89.68,16.08]
[1643358949772,1.496114,89.777,89.681,45.9923]
[1643358949974,1.496114,89.777,89.691,110.7]
[1643358950271,1.496114,89.777,89.692,40.62524229]
[1643358950476,1.496114,89.781,89.692,40.62524229]
[1643358950702,1.496114,89.782,89.702,6.0]
[1643358950872,1.496114,89.784,89.703,110.95]
[1643358951074,1.496114,89.786,89.703,110.95]
[1643358951675,1.496114,89.788,89.703,110.95]
[1643358952874,45.8612,89.791,89.703,110.95]
[1643358954178,45.8612,89.791,89.714,110.7]
[1643358954376,45.8612,89.791,89.715,0.25]
[1643358954977,27.84334605,89.79,89.715,40.37076304]
[1643358955377,27.84334605,89.79,89.716,110.7]
[1643358955779,27.84334605,89.79,89.717,0.25]
[1643358955977,45.8612,89.791,89.717,0.25]
[1643358956978,38.06396326,89.79,89.717,0.25]
[1643358957580,45.8612,89.791,89.717,0.25]
[1643358960104,45.8612,89.791,89.716,110.7]
[1643358961406,45.8612,89.791,89.717,0.25]
[1643358961607,6.0,89.781,89.717,0.25]
[1643358962609,7.37918696,89.781,89.717,0.25]
[1643358962807,1.37918696,89.781,89.717,0.25]
[1643358963008,45.8612,89.791,89.717,0.25]
[1643358964608,45.8612,89.791,89.718,2.2573406]
[1643358964808,45.8612,89.791,89.719,0.25]
[1643358966008,45.8612,89.791,89.717,0.25]
[1643358966814,45.8612,89.791,89.716,0.25]
[1643358967016,45.8612,89.791,89.665,1.50614987]
[1643358967213,2.95669142,89.79,89.669,22.6893]
[1643358967414,1.496114,89.785,89.643,1.50614987]
[1643358967613,1.496114,89.779,89.645,2.2573406]
[1643358967814,17.576114,89.78,89.64,17.58614987]
[1643358968013,2.95669142,89.778,89.641,47.1027827]
[1643358968221,2.95669142,89.778,89.642,110.7]
[1643358968420,30.8346562,89.777,89.651,6.0]
[1643358968619,30.8346562,89.777,89.652,6.0]
[1643358968821,30.8346562,89.777,89.653,157.8331]
[1643358969023,30.8346562,89.777,89.656,6.0]
[1643358969219,30.8346562,89.777,89.663,6.0]
[1643358969423,23.0477,89.776,89.664,23.9375]
[1643358969623,23.0477,89.776,89.674,6.0]
[1643358969920,23.0477,89.776,89.675,173.10289636]
[1643358970121,23.0477,89.776,89.685,6.0]
[1643358970322,23.0477,89.776,89.686,0.25]
[1643358970522,6.0,89.766,89.686,2.5073406]
[1643358970721,6.0,89.766,89.686,2.2573406]
[1643358971020,6.0,89.766,89.685,6.0]
[1643358971021,6.0,89.766,89.687,2.2573406]
[1643358971219,6.0,89.766,89.685,6.0]
[1643358972021,6.0,89.766,89.686,0.25]
[1643358972422,1.496114,89.777,89.686,0.25]
[1643358972621,3.00120258,89.802,89.686,25.1858]
[1643358972622,1.496114,89.776,89.686,25.1858]
[1643358972820,1.496114,89.778,89.687,23.9518]
[1643358973022,1.496114,89.78,89.697,6.0]
[1643358973221,1.496114,89.78,89.698,62.38920373]
[1643358973422,1.496114,89.781,89.698,62.63920373]
[1643358973627,1.496114,89.781,89.708,6.0]
[1643358973825,1.496114,89.78,89.709,0.25]
[1643358974226,1.496114,89.774,89.709,0.25]
[1643358974628,1.496114,89.776,89.709,0.25]
[1643358975126,1.496114,89.776,89.699,0.25]
[1643358975527,36.36719916,89.776,89.699,0.25]
[1643358975726,1.496114,89.776,89.699,0.25]
[1643358975928,1.496114,89.775,89.699,0.25]
[1643358976129,1.496114,89.773,89.699,0.25]
[1643358977130,1.496114,89.776,89.699,0.25]
[1643358977331,1.496114,89.778,89.699,110.95]
[1643358977535,6.0,89.768,89.699,110.95]
[1643358977830,1.496114,89.777,89.699,110.95]
[1643358978233,1.496114,89.778,89.7,16.08]
[1643358978430,1.496114,89.778,89.701,110.7]
[1643358978631,1.496114,89.778,89.701,110.95]
[1643358979031,1.496114,89.775,89.701,110.95]
[1643358981533,1.496114,89.776,89.701,110.95]
[1643358981832,1.496114,89.775,89.701,110.95]
[1643358982033,7.496114,89.776,89.701,110.95]
[1643358982432,1.496114,89.776,89.701,110.95]
[1643358982636,1.496114,89.772,89.701,110.95]
[1643358982831,1.496114,89.774,89.701,110.95]
[1643358983031,1.496114,89.779,89.701,110.95]
[1643358983234,1.496114,89.78,89.701,110.95]
[1643358983931,1.496114,89.778,89.701,110.95]
[1643358985634,1.496114,89.777,89.711,6.0]
[1643358985834,1.496114,89.778,89.712,0.25]
[1643358986236,1.496114,89.77,89.712,0.25]
[1643358986535,23.4973,89.79,89.712,0.25]
[1643358986536,1.496114,89.778,89.712,0.25]
[1643358986737,1.496114,89.779,89.712,0.25]
[1643358987438,1.496114,89.778,89.712,0.25]
[1643358989638,23.4973,89.79,89.712,0.25]
[1643358989639,1.496114,89.782,89.712,0.25]
[1643358989941,1.496114,89.781,89.712,0.25]
[1643358990141,1.496114,89.783,89.712,0.25]
[1643358992271,1.496114,89.781,89.712,0.25]
[1643358992671,1.496114,89.783,89.702,0.25]
[1643358993274,1.496114,89.782,89.702,0.25]
[1643358993472,1.496114,89.782,89.711,6.0]
[1643358993676,1.496114,89.784,89.711,6.0]
[1643358993873,1.496114,89.784,89.712,0.25]
[1643358994278,1.496114,89.785,89.712,0.25]
[1643358994880,1.496114,89.784,89.712,0.25]
[1643358995884,1.496114,89.783,89.712,0.25]
[1643358996285,1.496114,89.782,89.712,0.25]
[1643358996484,1.496114,89.783,89.712,0.25]
[1643358997085,1.496114,89.783,89.711,6.0]
[1643358997287,23.4973,89.79,89.698,37.91160373]
[1643358997288,1.496114,89.78,89.698,37.91160373]
[1643358997493,1.496114,89.766,89.674,1.50614987]
[1643358997691,6.0,89.773,89.643,47.4408]
[1643358997692,1.496114,89.759,89.667,1.50614987]
[1643358997888,1.496114,89.756,89.665,1.50614987]
[1643358998291,1.496114,89.759,89.668,1.50614987]
[1643358998490,6.41165365,89.755,89.668,1.50614987]
[1643358998890,22.5093,89.754,89.668,1.50614987]
[1643358999091,22.5093,89.754,89.669,1.50614987]
[1643358999291,22.5093,89.754,89.67,0.25]
[1643358999490,22.5093,89.754,89.668,1.75614987]
[1643358999691,22.5093,89.754,89.668,0.25]
[1643359000092,22.5093,89.754,89.666,42.78992197]
[1643359000296,1.496114,89.749,89.666,42.78992197]
[1643359000492,1.496114,89.748,89.666,42.78992197]
[1643359000695,1.496114,89.747,89.666,42.78992197]
[1643359000897,1.496114,89.75,89.666,42.78992197]
[1643359001093,22.7891,89.752,89.666,42.78992197]
[1643359001294,24.285214,89.752,89.667,0.25]
[1643359001692,22.7891,89.752,89.667,2.50725731]
[1643359002493,33.12449174,89.751,89.667,0.25]
[1643359004596,6.0,89.741,89.667,0.25]
[1643359004995,112.196114,89.75,89.667,0.25]
[1643359005596,1.496114,89.75,89.667,0.25]
[1643359005800,33.12449174,89.751,89.667,0.25]
[1643359006599,34.62060574,89.751,89.667,0.25]
[1643359006800,33.12449174,89.751,89.667,0.25]
[1643359007700,34.62060574,89.751,89.667,0.25]
[1643359008100,33.12449174,89.751,89.667,0.25]
[1643359008302,34.62060574,89.751,89.667,0.25]
[1643359008499,33.12449174,89.751,89.667,0.25]
[1643359008702,6.0,89.741,89.667,0.25]
[1643359008901,24.4675,89.74,89.667,0.25]
[1643359013407,24.4675,89.74,89.676,6.0]
[1643359013805,24.4675,89.74,89.677,0.25]
[1643359014908,24.4675,89.74,89.667,0.25]
[1643359024752,24.4675,89.74,89.668,2.25736747]
[1643359024946,1.496114,89.75,89.676,6.0]
[1643359025247,1.496114,89.76,89.68,16.08]
[1643359025448,1.496114,89.777,89.691,0.31481258]
[1643359025647,1.496114,89.784,89.7,16.08]
[1643359025845,28.72620204,89.796,89.701,36.12364271]
[1643359025846,1.496114,89.785,89.701,36.12364271]
[1643359026046,1.496114,89.78,89.711,6.0]
[1643359026252,1.496114,89.781,89.712,110.95]
[1643359026447,1.496114,89.783,89.712,2.50736747]
[1643359026649,1.496114,89.783,89.722,6.0]
[1643359026849,1.496114,89.786,89.712,0.25]
[1643359027051,23.982,89.79,89.701,34.62364271]
[1643359027052,1.496114,89.779,89.701,34.62364271]
[1643359027348,2.95669142,89.782,89.701,34.62364271]
[1643359027349,1.496114,89.77,89.701,34.62364271]
[1643359027550,1.496114,89.766,89.701,34.62364271]
[1643359027950,1.496114,89.764,89.701,34.62364271]
[1643359028353,1.496114,89.764,89.702,0.25]
[1643359028652,1.496114,89.762,89.702,0.25]
[1643359029250,1.746114,89.761,89.702,0.25]
[1643359029852,1.496114,89.76,89.682,0.25]
[1643359030157,1.496114,89.758,89.682,0.25]
[1643359030451,1.496114,89.756,89.682,0.25]
[1643359030651,28.72620204,89.755,89.682,38.69514097]
[1643359030854,23.9843,89.754,89.682,38.69514097]
[1643359031051,23.9843,89.754,89.682,0.25]
[1643359031254,26.94099142,89.754,89.656,1.50614987]
[1643359031459,1.496114,89.738,89.656,1.50614987]
[1643359031653,1.496114,89.73,89.63,1.50614987]
[1643359031851,1.496114,89.727,89.627,1.50614987]
[1643359032052,11.20779263,89.726,89.628,48.34570553]
[1643359032251,1.496114,89.728,89.628,48.34570553]
[1643359032455,1.496114,89.734,89.634,1.50614987]
[1643359032851,1.496114,89.736,89.635,38.7584728]
[1643359033252,34.50249957,89.735,89.636,19.12788719]
[1643359033456,34.50249957,89.735,89.637,1.50614987]
[1643359033653,34.50249957,89.735,89.637,112.20614987]
[1643359033856,34.50249957,89.735,89.638,0.25]
[1643359034452,6.0,89.725,89.638,0.25]
[1643359034952,1.496114,89.739,89.647,6.0]
[1643359035152,1.496114,89.743,89.648,24.3759]
[1643359035355,1.496114,89.749,89.649,6.0]
[1643359035553,1.496114,89.749,89.648,26.88939644]
[1643359035754,1.496114,89.748,89.648,26.88939644]
[1643359035956,31.29327324,89.749,89.649,30.9002998]
[1643359036155,29.79715924,89.749,89.649,30.9002998]
[1643359036356,29.79715924,89.749,89.65,110.95]
[1643359036759,1.496114,89.75,89.65,110.95]
[1643359036980,1.496114,89.749,89.65,110.95]
[1643359037759,1.496114,89.75,89.65,110.95]
[1643359037960,0.25,89.748,89.65,110.95]
[1643359039164,6.0,89.74,89.65,110.95]
[1643359039361,0.25,89.739,89.65,110.95]
[1643359039962,6.25,89.739,89.65,110.95]
[1643359040161,6.0,89.739,89.65,110.95]
[1643359040364,0.25,89.738,89.65,110.95]
[1643359040761,6.0,89.74,89.65,110.95]
[1643359040961,0.25,89.739,89.65,110.95]
[1643359041563,6.0,89.741,89.65,110.95]
[1643359041964,6.0,89.741,89.66,16.08]
[1643359042164,1.496114,89.752,89.661,23.3193]
[1643359042364,25.480414,89.754,89.663,46.23455327]
[1643359042763,25.480414,89.754,89.664,0.25]
[1643359043164,25.480414,89.754,89.665,2.26349644]
[1643359043370,23.7939,89.77,89.665,2.26349644]
[1643359043371,1.496114,89.758,89.673,6.0]
[1643359043565,3.00120258,89.79,89.68,6.0]
[1643359043769,3.0482958,89.798,89.691,110.7]
[1643359043970,23.6194,89.799,89.693,31.51533806]
[1643359044168,23.6194,89.799,89.701,6.0]
[1643359044369,23.6194,89.799,89.703,6.0]
[1643359044589,23.6194,89.799,89.704,23.552]
[1643359044789,23.6194,89.799,89.704,23.802]
[1643359044990,23.6194,89.799,89.704,134.502]
[1643359045190,23.6194,89.799,89.704,23.802]
[1643359045391,0.25,89.798,89.704,23.802]
[1643359045592,0.25,89.798,89.714,6.0]
[1643359045790,0.25,89.798,89.715,35.5934221]
[1643359045991,0.25,89.798,89.716,24.919]
[1643359046390,0.25,89.798,89.717,0.25]
[1643359047693,0.25,89.798,89.716,0.25]
[1643359047694,2.95669142,89.797,89.716,0.25]
[1643359047892,10.02906006,89.788,89.716,0.25]
[1643359048093,22.6153,89.787,89.716,0.25]
[1643359048290,25.57199142,89.787,89.716,0.25]
[1643359048691,2.95669142,89.786,89.716,0.25]
[1643359048892,2.95669142,89.786,89.715,35.3434221]
[1643359049894,22.6153,89.787,89.715,35.3434221]
[1643359050791,22.6153,89.787,89.716,0.25]
[1643359051596,6.0,89.777,89.716,0.25]
[1643359052197,6.0,89.777,89.715,35.3434221]
[1643359052397,2.95669142,89.776,89.715,35.3434221]
[1643359052695,3.20669142,89.776,89.715,35.3434221]
[1643359053295,2.95669142,89.775,89.716,0.25]
[1643359053495,0.25,89.776,89.716,0.25]
[1643359053695,6.0,89.777,89.716,0.25]
[1643359054296,152.03498033,89.776,89.716,0.25]
[1643359055394,152.03498033,89.776,89.715,35.3434221]
[1643359055594,2.95669142,89.775,89.715,35.3434221]
[1643359055794,2.95669142,89.775,89.716,0.25]
[1643359055996,152.03498033,89.776,89.716,0.25]
[1643359056495,0.25,89.775,89.716,0.25]
[1643359056698,152.03498033,89.776,89.716,0.25]
[1643359058599,6.0,89.766,89.716,0.25]
[1643359059000,22.6153,89.787,89.716,0.25]
[1643359059400,110.7,89.806,89.716,0.25]
[1643359059603,22.9534,89.805,89.716,23.237]
[1643359059903,57.63924177,89.805,89.716,23.237]
[1643359060910,0.25,89.804,89.716,23.237]
[1643359061507,0.25,89.804,89.716,22.987]
[1643359062110,22.9534,89.805,89.716,22.987]
[1643359062407,22.9534,89.805,89.72,16.08]
[1643359062612,22.9534,89.805,89.73,6.0]
[1643359062807,22.9534,89.805,89.731,24.5939]
[1643359063206,22.9534,89.805,89.732,35.84151434]
[1643359063406,22.9534,89.805,89.733,110.95]
[1643359063606,22.9534,89.805,89.733,113.21963069]
[1643359064006,22.9534,89.805,89.733,110.95]
[1643359064207,22.9534,89.805,89.733,0.25]
[1643359065211,22.4534,89.805,89.733,0.25]
[1643359067210,22.4534,89.805,89.732,35.84151434]
[1643359067814,22.4534,89.805,89.742,6.0]
[1643359068409,22.4534,89.805,89.732,35.84151434]
[1643359068610,22.4534,89.805,89.733,0.25]
[1643359069312,0.25,89.804,89.733,0.25]
[1643359070510,15.03096017,89.795,89.733,0.25]
[1643359071512,9.03096017,89.795,89.733,0.25]
[1643359073721,24.7641,89.794,89.733,0.25]
[1643359077123,24.7641,89.794,89.732,35.84151434]
[1643359077922,24.7641,89.794,89.733,110.7]
[1643359078323,24.7641,89.794,89.734,0.25]
[1643359078522,3.00120258,89.829,89.743,6.0]
[1643359078728,3.00120258,89.838,89.75,16.08]
[1643359078922,3.00120258,89.842,89.751,127.84427699]
[1643359079126,3.00120258,89.844,89.751,130.37756205]
[1643359079321,3.00120258,89.845,89.751,130.37756205]
[1643359079527,3.00120258,89.845,89.761,6.0]
[1643359079722,6.0442839,89.845,89.762,24.5163]
[1643359079922,6.0,89.835,89.762,30.7663]
[1643359080523,6.0,89.835,89.763,110.7]
[1643359080825,6.0,89.835,89.764,0.25]
[1643359082124,0.25,89.844,89.764,0.25]
[1643359082325,3.04255747,89.843,89.764,0.25]
[1643359082624,3.04255747,89.843,89.774,35.84151434]
[1643359082825,3.04255747,89.843,89.775,23.0231]
[1643359083825,3.00120258,89.848,89.775,23.0231]
[1643359084029,6.0,89.838,89.775,23.0231]
[1643359084527,44.65671892,89.84,89.774,35.84151434]
[1643359084728,44.65671892,89.84,89.691,79.6660022]
[1643359084729,6.0,89.839,89.74,18.36328506]
[1643359084933,2.95669142,89.837,89.72,16.08]
[1643359085130,3.00120258,89.833,89.711,24.7979]
[1643359085329,3.00120258,89.829,89.711,24.7979]
[1643359085530,3.00120258,89.831,89.711,24.7979]
[1643359085746,3.00120258,89.831,89.712,45.2517508]
[1643359085747,21.53748975,89.824,89.712,45.2517508]
[1643359085956,24.53869233,89.824,89.712,45.2517508]
[1643359086151,3.00120258,89.818,89.712,45.2517508]
[1643359086353,22.7594,89.817,89.712,45.2517508]
[1643359086550,44.65671892,89.806,89.712,45.2517508]
[1643359086750,110.7,89.804,89.712,45.2517508]
[1643359086951,3.04530932,89.803,89.712,45.2517508]
[1643359087352,3.04530932,89.803,89.713,0.25]
[1643359087353,16.7253,89.8,89.713,0.25]
[1643359087552,3.04530932,89.799,89.713,0.25]
[1643359087751,6.00200074,89.799,89.713,0.25]
[1643359088051,116.70200074,89.798,89.713,0.25]
[1643359088251,3.04530932,89.797,89.713,0.25]
[1643359088455,6.00200074,89.797,89.712,45.2517508]
[1643359088653,3.04530932,89.796,89.712,45.2517508]
[1643359089252,6.00200074,89.796,89.712,45.2517508]
[1643359089454,3.04530932,89.795,89.712,45.2517508]
[1643359089654,3.04530932,89.795,89.713,110.95]
[1643359089853,3.04530932,89.799,89.713,110.95]
[1643359090456,21.53748975,89.788,89.713,110.95]
[1643359090957,3.20669142,89.787,89.712,45.2517508]
[1643359091357,3.20669142,89.787,89.693,110.7]
[1643359091554,3.20669142,89.787,89.694,0.25]
[1643359091757,0.25,89.787,89.694,0.25]
[1643359092357,0.25,89.787,89.694,49.38218762]
[1643359093557,2.95669142,89.786,89.694,49.38218762]
[1643359094357,0.25,89.785,89.694,49.38218762]
[1643359094556,0.25,89.785,89.694,49.13218762]
[1643359094757,2.95669142,89.784,89.694,49.13218762]
[1643359094958,6.0,89.776,89.694,49.13218762]
[1643359095757,41.23007563,89.774,89.694,49.13218762]
[1643359096165,41.23007563,89.774,89.695,0.25]
[1643359096360,41.23007563,89.774,89.694,49.13218762]
[1643359096562,41.23007563,89.774,89.695,0.25]
[1643359097571,41.23007563,89.774,89.696,2.28328506]
[1643359097764,41.23007563,89.774,89.697,0.25]
[1643359098164,41.23007563,89.774,89.698,2.28328506]
[1643359098366,41.23007563,89.774,89.699,0.25]
[1643359098665,0.25,89.773,89.699,0.25]
[1643359098866,0.25,89.773,89.7,2.28328506]
[1643359099066,0.25,89.773,89.706,6.0]
[1643359099266,6.0,89.794,89.707,0.25]
[1643359099267,0.25,89.793,89.707,0.25]
[1643359099466,6.0,89.794,89.707,0.25]
[1643359099663,3.00120258,89.81,89.708,130.5847227]
[1643359099866,3.04553628,89.82,89.721,110.7]
[1643359100167,24.9183,89.83,89.731,6.0]
[1643359100362,24.9183,89.83,89.74,16.08]
[1643359100564,24.9183,89.83,89.741,134.7687]
[1643359100763,0.25,89.829,89.742,42.77441189]
[1643359101168,0.25,89.829,89.752,6.0]
[1643359101364,0.25,89.829,89.753,0.25]
[1643359101766,0.25,89.829,89.76,6.0]
[1643359101963,0.25,89.829,89.762,110.7]
[1643359102165,0.25,89.829,89.764,110.7]
[1643359102365,3.00120258,89.851,89.765,0.25]
[1643359102566,6.0,89.841,89.765,0.25]
[1643359103167,16.08,89.88,89.775,37.60828233]
[1643359103168,3.00120258,89.855,89.775,37.60828233]
[1643359103367,3.00120258,89.872,89.776,0.25]
[1643359103565,3.00120258,89.875,89.786,110.7]
[1643359103767,3.00120258,89.875,89.787,0.25]
[1643359103966,3.04700046,89.875,89.787,0.25]
[1643359104567,3.04700046,89.875,89.798,110.7]
[1643359104766,42.88311074,89.876,89.799,0.25]
[1643359105968,42.88311074,89.876,89.798,0.25]
[1643359106569,6.0,89.866,89.798,0.25]
[1643359107270,6.0,89.866,89.798,110.95]
[1643359107770,51.62919142,89.889,89.798,110.95]
[1643359108172,48.6725,89.889,89.808,6.0]
[1643359108372,48.6725,89.889,89.809,0.25]
[1643359108772,35.40287747,89.888,89.809,0.25]
[1643359108975,1.18594296,89.865,89.809,0.25]
[1643359110175,1.18594296,89.865,89.808,6.0]
[1643359111374,1.18594296,89.865,89.809,110.95]
[1643359112674,1.18594296,89.865,89.819,6.0]
[1643359112874,1.18594296,89.865,89.82,37.85828233]
[1643359113876,49.8587673,89.889,89.82,37.85828233]
[1643359114075,6.0,89.879,89.82,37.85828233]
[1643359114877,6.0,89.879,89.821,110.7]
[1643359115276,0.25,89.878,89.822,0.25]
[1643359115477,49.8587673,89.889,89.822,0.25]
[1643359115676,1.1862673,89.889,89.822,0.25]
[1643359115877,1.1862673,89.889,89.831,6.0]
[1643359116277,16.6983,89.94,89.834,110.7]
[1643359116483,24.6199,89.939,89.834,110.7]
[1643359116683,24.6199,89.939,89.844,6.0]
[1643359116883,40.09306216,89.938,89.845,8.1912417]
[1643359117281,40.09306216,89.938,89.855,6.0]
[1643359117482,43.04975358,89.938,89.855,6.0]
[1643359117683,0.25,89.937,89.855,6.0]
[1643359117887,0.25,89.937,89.856,0.25]
[1643359118489,0.25,89.937,89.856,6.0]
[1643359118689,2.95669142,89.936,89.856,6.0]
[1643359118889,0.25,89.937,89.846,23.2356]
[1643359119089,40.09306216,89.938,89.846,23.2356]
[1643359119706,40.09306216,89.938,89.856,6.0]
[1643359120107,40.09306216,89.938,89.857,0.25]
[1643359120804,24.6199,89.939,89.857,110.95]
[1643359121005,24.6199,89.939,89.867,6.0]
[1643359121206,24.6199,89.939,89.868,110.7]
[1643359121407,24.6199,89.939,89.868,110.95]
[1643359121607,24.6199,89.939,89.879,110.7]
[1643359121806,24.6199,89.939,89.88,34.90275241]
[1643359122010,2.95669142,89.974,89.89,6.0]
[1643359122208,46.492,89.987,89.891,110.7]
[1643359122407,46.492,89.987,89.893,110.7]
[1643359122608,46.492,89.987,89.903,6.0]
[1643359122808,49.44869142,89.987,89.904,11.39677162]
[1643359123012,36.09573522,89.986,89.914,6.0]
[1643359123511,36.09573522,89.986,89.915,6.0]
[1643359123812,2.95669142,89.985,89.904,11.14677162]
[1643359124210,0.25,89.984,89.904,11.14677162]
[1643359124410,2.95669142,89.985,89.904,11.14677162]
[1643359125010,113.65669142,89.985,89.904,11.14677162]
[1643359125211,2.95669142,89.985,89.904,11.14677162]
[1643359125410,2.95669142,89.984,89.904,11.14677162]
[1643359125611,2.95669142,89.984,89.862,110.7]
[1643359125811,0.25,89.983,89.87,16.08]
[1643359126012,0.25,89.983,89.86,16.08]
[1643359126210,3.02528145,89.982,89.86,16.08]
[1643359126511,5.98197287,89.982,89.86,16.08]
[1643359126711,2.95669142,89.981,89.861,32.65843663]
[1643359126909,5.98197287,89.981,89.861,32.65843663]
[1643359127114,2.95669142,89.981,89.862,0.25]
[1643359127315,19.64869142,89.98,89.862,0.25]
[1643359127713,2.95669142,89.979,89.862,0.25]
[1643359127917,3.02431243,89.978,89.862,110.95]
[1643359128113,2.95669142,89.979,89.862,0.25]
[1643359128316,23.83167531,89.983,89.862,0.25]
[1643359128317,2.95669142,89.977,89.862,0.25]
[1643359128917,16.6961,89.96,89.862,0.25]
[1643359129117,37.28474075,89.958,89.861,32.65843663]
[1643359129517,2.95669142,89.957,89.862,110.7]
[1643359129726,27.30279142,89.957,89.861,32.65843663]
[1643359129917,110.7,89.956,89.861,32.65843663]
[1643359130118,113.65669142,89.956,89.861,32.65843663]
[1643359130316,16.6974,89.95,89.861,32.65843663]
[1643359130718,2.95669142,89.949,89.862,0.25]
[1643359130918,22.5196,89.948,89.862,0.25]
[1643359131318,2.95669142,89.947,89.862,0.25]
[1643359131522,3.20669142,89.947,89.861,32.65843663]
[1643359131717,3.20669142,89.947,89.862,0.25]
[1643359132417,0.25,89.947,89.862,0.25]
[1643359132820,2.95669142,89.946,89.862,0.25]
[1643359133418,2.95669142,89.946,89.861,32.65843663]
[1643359134521,2.95669142,89.946,89.86,16.08]
[1643359134728,2.95669142,89.946,89.783,16.9814]
[1643359134729,16.6998,89.94,89.783,16.9814]
[1643359134927,16.6998,89.94,89.82,16.08]
[1643359135124,44.0227789,89.939,89.79,16.08]
[1643359135324,3.00120258,89.935,89.79,16.08]
[1643359135523,3.00120258,89.93,89.791,147.57217882]
[1643359135725,3.00120258,89.929,89.791,147.57217882]
[1643359135925,48.5141,89.928,89.791,147.57217882]
[1643359136127,48.5141,89.928,89.792,0.25]
[1643359136324,16.7071,89.9,89.801,6.0]